bitfinex/quotes_BTCUSD_20241003
["timestamp","ask_amount","ask_price","bid_price","bid_amount"]
[1727975425414,0.002017,60419.0,60418.0,0.70585045]
[1727975426092,0.002017,60419.0,60418.0,0.68285045]
[1727975426562,0.002017,60419.0,60418.0,0.45669971]
[1727975426835,0.002017,60419.0,60418.0,0.47969971]
[1727975427764,0.002017,60419.0,60418.0,0.45669971]
[1727975429904,0.002017,60419.0,60418.0,0.47969971]
[1727975430936,0.000816,60428.0,60427.0,0.165488]
[1727975431172,0.000817,60441.0,60438.0,0.165458]
[1727975431430,0.000817,60441.0,60438.0,0.61734195]
[1727975431915,0.000817,60441.0,60438.0,0.51833447]
[1727975432132,0.000817,60441.0,60438.0,0.61734195]
[1727975432596,0.000817,60441.0,60438.0,0.61554461]
[1727975433039,0.000817,60441.0,60438.0,0.54133447]
[1727975433270,0.000817,60460.0,60458.0,0.165404]
[1727975433514,0.000817,60460.0,60458.0,0.51828047]
[1727975433756,0.000817,60460.0,60458.0,0.6127062]
[1727975435949,0.000817,60460.0,60458.0,0.6267062]
[1727975436175,0.000817,60460.0,60458.0,0.6407062]
[1727975436660,0.000817,60460.0,60458.0,0.64618648]
[1727975437399,0.000817,60460.0,60458.0,0.193404]
[1727975437661,0.339201,60459.0,60458.0,0.028]
[1727975438632,0.339201,60459.0,60458.0,0.014]
[1727975439119,0.330822,60456.0,60452.0,0.2491922]
[1727975439347,0.165413,60455.0,60452.0,0.2491922]
[1727975439575,0.165417,60453.0,60452.0,0.2491922]
[1727975439801,0.330829,60455.0,60449.0,0.2491922]
[1727975439802,0.165421,60452.0,60449.0,0.2491922]
[1727975440032,0.165418,60453.0,60449.0,0.4146192]
[1727975440259,0.330829,60455.0,60449.0,0.2491922]
[1727975440499,0.165416,60454.0,60452.0,0.004]
[1727975440741,0.165417,60453.0,60452.0,0.004]
[1727975441467,0.330814,60457.0,60452.0,0.004]
[1727975441468,0.330818,60457.0,60452.0,0.004]
[1727975441938,0.330818,60457.0,60449.0,0.003]
[1727975441939,0.165417,60453.0,60449.0,0.2521922]
[1727975442184,0.505421,60459.0,60450.0,0.4473022]
[1727975442452,0.505421,60459.0,60458.0,0.165404]
[1727975442453,0.083117,60459.0,60458.0,0.165404]
[1727975442700,0.001017,60459.0,60458.0,0.165404]
[1727975443416,0.001017,60459.0,60455.0,0.28411549]
[1727975443650,0.002017,60459.0,60458.0,0.165404]
[1727975444108,0.001017,60459.0,60458.0,0.165404]
[1727975444359,0.002017,60459.0,60458.0,0.165404]
[1727975445356,0.002017,60459.0,60458.0,0.174404]
[1727975445837,0.002017,60459.0,60458.0,0.165404]
[1727975446109,0.002017,60459.0,60458.0,0.175404]
[1727975446110,0.001017,60459.0,60458.0,0.175404]
[1727975446570,0.001017,60459.0,60458.0,0.181404]
[1727975447034,0.166418,60459.0,60458.0,0.01]
[1727975447284,0.166418,60459.0,60458.0,0.017]
[1727975448777,0.001017,60459.0,60453.0,0.2491922]
[1727975449012,0.331822,60459.0,60453.0,0.4146082]
[1727975449271,0.497223,60459.0,60458.0,0.003]
[1727975449765,0.166418,60459.0,60458.0,0.003]
[1727975450013,0.331819,60459.0,60450.0,0.2491922]
[1727975450260,0.165407,60457.0,60453.0,0.171416]
[1727975450487,0.331819,60459.0,60454.0,0.330828]
[1727975450488,0.001017,60459.0,60454.0,0.330828]
[1727975450714,0.001017,60459.0,60453.0,0.006]
[1727975451012,0.330809,60458.0,60453.0,0.33460271]
[1727975451262,0.165415,60454.0,60453.0,0.006]
[1727975451944,0.165421,60452.0,60449.0,0.165428]
[1727975452170,0.165416,60454.0,60450.0,0.2491922]
[1727975452396,0.165416,60454.0,60448.0,0.330859]
[1727975452397,0.330822,60456.0,60448.0,0.330859]
[1727975452623,0.165415,60454.0,60453.0,0.004]
[1727975452856,0.165415,60454.0,60453.0,0.011]
[1727975453081,0.330822,60456.0,60448.0,0.16318671]
[1727975453082,0.165426,60450.0,60448.0,0.16318671]
[1727975453314,0.165426,60450.0,60449.0,0.2491922]
[1727975453546,0.165434,60447.0,60445.0,0.001634]
[1727975453794,0.165434,60447.0,60445.0,0.16482071]
[1727975454014,0.165429,60449.0,60445.0,0.33025871]
[1727975454247,0.330856,60450.0,60445.0,0.001634]
[1727975454479,0.001017,60459.0,60445.0,0.001634]
[1727975454480,0.33086,60449.0,60445.0,0.001634]
[1727975454710,0.165435,60447.0,60445.0,0.001634]
[1727975454943,0.165436,60446.0,60445.0,0.001634]
[1727975455172,0.33084,60453.0,60445.0,0.001634]
[1727975455173,0.165429,60449.0,60445.0,0.167073]
[1727975455405,0.165433,60448.0,60445.0,0.012634]
[1727975455851,0.165433,60448.0,60445.0,0.001634]
[1727975456065,0.165433,60448.0,60445.0,0.009634]
[1727975456296,0.165433,60448.0,60445.0,0.001634]
[1727975456525,0.165436,60447.0,60445.0,0.008634]
[1727975456751,0.33086,60449.0,60445.0,0.008634]
[1727975456752,0.165432,60448.0,60445.0,0.012634]
[1727975456979,0.165432,60448.0,60445.0,0.178072]
[1727975457215,0.165435,60447.0,60445.0,0.012634]
[1727975457507,0.165434,60447.0,60445.0,0.012634]
[1727975457728,0.330843,60452.0,60446.0,0.165436]
[1727975457973,0.165427,60450.0,60446.0,0.165436]
[1727975458417,0.16543,60449.0,60446.0,0.165436]
[1727975458891,0.330843,60452.0,60446.0,0.165436]
[1727975459113,0.165432,60448.0,60445.0,0.167073]
[1727975459353,0.02694666,60459.0,60446.0,0.172436]
[1727975459354,0.165425,60451.0,60446.0,0.172436]
[1727975459580,0.02694666,60459.0,60446.0,0.007]
[1727975459807,0.165432,60448.0,60446.0,0.005]
[1727975460030,0.165434,60447.0,60446.0,0.005]
[1727975460256,0.496283,60450.0,60445.0,0.001634]
[1727975460488,0.165435,60447.0,60445.0,0.001634]
[1727975460930,0.165436,60446.0,60445.0,0.001634]
[1727975462379,0.165427,60450.0,60447.0,0.165433]
[1727975462590,0.004,60446.0,60445.0,0.169073]
[1727975463082,0.33083,60454.0,60445.0,0.001634]
[1727975463328,0.165423,60451.0,60445.0,0.002634]
[1727975463561,0.0777,60458.0,60446.0,0.41237891]
[1727975463857,0.0166954,60463.0,60457.0,0.165405]
[1727975463858,0.001017,60459.0,60457.0,0.165405]
[1727975464105,0.001017,60459.0,60458.0,0.32859071]
[1727975464806,0.001017,60459.0,60458.0,0.42739113]
[1727975465088,0.001017,60459.0,60458.0,0.52739113]
[1727975465315,0.001017,60459.0,60458.0,0.45159071]
[1727975465808,0.003017,60459.0,60458.0,0.45689971]
[1727975466061,0.003017,60459.0,60458.0,0.47089971]
[1727975466337,0.001017,60459.0,60458.0,0.44789971]
[1727975466563,0.001017,60459.0,60458.0,0.39198541]
[1727975467060,0.001017,60459.0,60458.0,0.34259071]
[1727975467583,0.001017,60459.0,60458.0,0.4285962]
[1727975467822,0.001017,60459.0,60458.0,0.35659071]
[1727975468054,0.001017,60459.0,60458.0,0.40598541]
[1727975468282,0.001017,60459.0,60458.0,0.39198541]
[1727975468523,0.001017,60459.0,60458.0,0.45459071]
[1727975468754,0.000917,60480.0,60478.0,0.165349]
[1727975468981,0.000917,60480.0,60478.0,0.32853571]
[1727975469695,0.000917,60480.0,60478.0,0.67772791]
[1727975469919,0.0774,60517.0,60479.0,0.023]
[1727975470189,0.0002,60519.0,60498.0,0.35487286]
[1727975470634,0.165438,60519.0,60498.0,0.35487286]
[1727975470851,0.330498,60515.0,60498.0,0.165294]
[1727975471081,0.165256,60513.0,60498.0,0.165294]
[1727975471305,0.000817,60514.0,60498.0,0.32848071]
[1727975471528,0.000817,60514.0,60498.0,0.51805957]
[1727975471759,0.000817,60514.0,60498.0,0.71220592]
[1727975471998,0.000817,60514.0,60498.0,0.74920592]
[1727975472220,0.000817,60514.0,60498.0,0.73520592]
[1727975472442,0.000817,60514.0,60498.0,0.75520592]
[1727975472693,0.000817,60514.0,60513.0,0.165253]
[1727975472914,0.000817,60514.0,60513.0,0.61216492]
[1727975473802,0.000817,60514.0,60513.0,0.63516492]
[1727975474086,0.000817,60514.0,60513.0,0.73516492]
[1727975474325,0.0002,60519.0,60518.0,0.27024]
[1727975474561,0.0002,60519.0,60518.0,0.74015192]
[1727975474778,0.0158794,60523.0,60522.0,0.170229]
[1727975474993,0.0158794,60523.0,60522.0,0.45841571]
[1727975475694,0.0158794,60523.0,60522.0,0.45641571]
[1727975475961,0.165998,60540.0,60538.0,0.165185]
[1727975475962,0.000817,60540.0,60538.0,0.165185]
[1727975476188,0.000817,60540.0,60538.0,0.32837171]
[1727975476438,0.000817,60540.0,60538.0,0.45137171]
[1727975476909,0.000817,60540.0,60539.0,0.293182]
[1727975477153,0.0002,60559.0,60558.0,0.54885521]
[1727975477393,0.0002,60559.0,60558.0,0.71204192]
[1727975477638,0.0002,60559.0,60558.0,0.71704192]
[1727975478122,0.0002,60559.0,60558.0,0.71204192]
[1727975478358,0.0002,60559.0,60558.0,0.72604192]
[1727975478589,0.0002,60559.0,60558.0,0.71704192]
[1727975478844,0.0002,60559.0,60558.0,0.72604192]
[1727975479082,0.0002,60559.0,60558.0,0.16318671]
[1727975479338,0.165134,60557.0,60548.0,0.165157]
[1727975479567,0.0002,60559.0,60551.0,0.2491922]
[1727975479803,0.165131,60558.0,60552.0,0.16318671]
[1727975480025,0.0002,60559.0,60552.0,0.16318671]
[1727975480026,0.00012971,60559.0,60552.0,0.16318671]
[1727975480533,0.16525871,60559.0,60552.0,0.16318671]
[1727975480789,0.00012971,60559.0,60552.0,0.16318671]
[1727975481018,0.16525771,60559.0,60558.0,0.028]
[1727975481262,0.16525771,60559.0,60558.0,0.014]
[1727975481485,0.165144,60553.0,60552.0,0.16318671]
[1727975481706,0.165144,60553.0,60552.0,0.002]
[1727975481943,0.42861213,60553.0,60536.0,0.2491922]
[1727975482164,0.165166,60545.0,60544.0,0.2491922]
[1727975482638,0.165185,60538.0,60537.0,0.16318671]
[1727975482894,0.165185,60538.0,60527.0,0.5796202]
[1727975482895,0.165206,60531.0,60527.0,0.2491922]
[1727975483133,0.1652,60533.0,60528.0,0.16318671]
[1727975483344,0.330327,60546.0,60530.0,0.165207]
[1727975483567,0.165201,60532.0,60531.0,0.16318671]
[1727975484018,0.330386,60536.0,60516.0,0.165245]
[1727975484019,0.825962,60536.0,60516.0,0.165245]
[1727975484249,0.28372521,60537.0,60522.0,0.2491922]
[1727975484250,0.165226,60523.0,60522.0,0.2491922]
[1727975484503,0.165226,60523.0,60522.0,0.41237891]
[1727975484726,0.330406,60532.0,60522.0,0.41237891]
[1727975484957,0.165223,60524.0,60523.0,0.16318671]
[1727975485399,0.165219,60526.0,60523.0,0.16318671]
[1727975485668,0.002,60532.0,60523.0,0.16318671]
[1727975486126,0.165223,60524.0,60523.0,0.16318671]
[1727975486560,0.165223,60524.0,60523.0,0.17118671]
[1727975487009,0.165216,60527.0,60523.0,0.17118671]
[1727975487204,0.165213,60528.0,60523.0,0.17118671]
[1727975487434,0.330409,60531.0,60523.0,0.33641171]
[1727975487656,0.165206,60531.0,60525.0,0.16522]
[1727975487876,0.000815,60540.0,60526.0,0.16318671]
[1727975488102,0.000815,60540.0,60527.0,0.2491922]
[1727975488374,0.000815,60540.0,60537.0,0.165187]
[1727975488589,0.165995,60540.0,60538.0,0.16318671]
[1727975488808,0.000815,60540.0,60538.0,0.16318671]
[1727975489027,0.008815,60540.0,60538.0,0.16318671]
[1727975489255,0.008815,60540.0,60539.0,0.165182]
[1727975489542,0.002815,60540.0,60539.0,0.32836871]
[1727975490644,0.165145,60553.0,60547.0,0.165159]
[1727975490865,0.3320922,60555.0,60548.0,0.16318671]
[1727975491101,0.0775,60565.0,60558.0,0.16513]
[1727975491339,0.165117,60564.0,60558.0,0.16318671]
[1727975491561,0.3266922,60565.0,60558.0,0.16318671]
[1727975491562,0.330234,60563.0,60558.0,0.16318671]
[1727975491785,0.330221,60566.0,60558.0,0.16318671]
[1727975492023,0.165115,60564.0,60558.0,0.16318671]
[1727975492266,0.16522,60562.0,60558.0,0.16318671]
[1727975492484,0.00112971,60559.0,60558.0,0.33931671]
[1727975492708,0.00112971,60559.0,60558.0,0.18118671]
[1727975492935,0.16625771,60559.0,60558.0,0.18118671]
[1727975493161,0.16625771,60559.0,60558.0,0.018]
[1727975494309,0.16625771,60559.0,60558.0,0.011]
[1727975495036,0.00012971,60559.0,60555.0,0.165137]
[1727975495271,0.00012971,60559.0,60553.0,0.165144]
[1727975495488,0.00012971,60559.0,60558.0,0.001]
[1727975495709,0.00012971,60559.0,60554.0,0.16318671]
[1727975495978,0.00112971,60559.0,60558.0,0.006]
[1727975496190,0.00112971,60559.0,60554.0,0.16318671]
[1727975496639,0.00212971,60559.0,60558.0,0.16513]
[1727975496866,0.00212971,60559.0,60558.0,0.16318671]
[1727975497689,0.00212971,60559.0,60558.0,0.32831671]
[1727975497926,0.0001,60562.0,60561.0,0.165122]
[1727975498136,0.0001,60562.0,60561.0,0.32830871]
[1727975499049,0.0011,60562.0,60561.0,0.17118671]
[1727975499496,0.0001,60562.0,60561.0,0.32830871]
[1727975499769,0.0011,60562.0,60561.0,0.17118671]
[1727975500480,0.0011,60562.0,60561.0,0.34030871]
[1727975500971,0.0011,60562.0,60561.0,0.33630871]
[1727975501712,0.0001,60562.0,60561.0,0.16318671]
[1727975501942,0.0001,60562.0,60561.0,0.004]
[1727975502188,0.0001,60562.0,60561.0,0.013]
[1727975502421,0.0001,60562.0,60545.0,0.330332]
[1727975502667,0.0001,60562.0,60561.0,0.013]
[1727975502907,0.0001,60562.0,60558.0,0.165129]
[1727975503148,0.0001,60562.0,60557.0,0.165132]
[1727975503374,0.0001,60562.0,60552.0,0.16318671]
[1727975503375,0.0001,60562.0,60554.0,0.2491922]
[1727975503849,0.330253,60560.0,60554.0,0.2491922]
[1727975504072,0.165128,60559.0,60554.0,0.2491922]
[1727975504559,0.165128,60559.0,60554.0,0.2511922]
[1727975504818,0.165134,60557.0,60554.0,0.002]
[1727975505017,0.082,60554.0,60540.0,0.00163]
[1727975505262,0.082,60554.0,60551.0,0.2491922]
[1727975505263,0.412284,60554.0,60551.0,0.2491922]
[1727975505472,0.165156,60549.0,60543.0,0.16517]
[1727975505697,0.330323,60547.0,60540.0,0.00163]
[1727975505919,0.330311,60549.0,60540.0,0.00163]
[1727975506172,0.082,60554.0,60545.0,0.41237891]
[1727975506388,0.082,60554.0,60545.0,0.16318671]
[1727975506613,0.002,60554.0,60552.0,0.330294]
[1727975506834,0.002,60554.0,60553.0,0.165144]
[1727975507059,0.002,60554.0,60547.0,0.330319]
[1727975507282,0.165142,60554.0,60548.0,0.4143492]
[1727975507521,0.165141,60555.0,60549.0,0.165155]
[1727975507736,0.165141,60555.0,60548.0,0.2491922]
[1727975507737,0.165145,60553.0,60548.0,0.2491922]
[1727975507955,0.0761,60562.0,60559.0,0.165127]
[1727975508183,0.0001,60562.0,60559.0,0.165126]
[1727975508414,0.0001,60562.0,60550.0,0.16322671]
[1727975508678,0.0001,60562.0,60553.0,0.2491922]
[1727975508902,0.0001,60562.0,60554.0,0.16318671]
[1727975508903,0.330343,60562.0,60554.0,0.16318671]
[1727975509130,0.165132,60558.0,60554.0,0.16318671]
[1727975509583,0.165129,60559.0,60554.0,0.32832771]
[1727975510048,0.165129,60559.0,60555.0,0.165138]
[1727975510299,0.0051,60562.0,60553.0,0.2491922]
[1727975510505,0.0051,60562.0,60549.0,0.165154]
[1727975510506,0.165143,60554.0,60549.0,0.165154]
[1727975510724,0.165143,60554.0,60552.0,0.2491922]
[1727975510940,0.165145,60553.0,60551.0,0.16248671]
[1727975511206,0.003,60558.0,60554.0,0.001]
[1727975511411,0.165139,60555.0,60554.0,0.001]
[1727975511635,0.28372521,60563.0,60554.0,0.001]
[1727975511636,0.0001,60562.0,60554.0,0.16418671]
[1727975511855,0.0001,60562.0,60554.0,0.16238671]
[1727975512076,0.004,60559.0,60554.0,0.16238671]
[1727975512308,0.004,60559.0,60558.0,0.16503]
[1727975512587,0.004,60559.0,60558.0,0.32811671]
[1727975512797,0.004,60559.0,60558.0,0.40053849]
[1727975513054,0.165128,60559.0,60558.0,0.16318671]
[1727975513294,0.165128,60559.0,60558.0,0.16298671]
[1727975513523,0.165128,60559.0,60558.0,0.21120948]
[1727975513750,0.0001,60562.0,60558.0,0.16318671]
[1727975513984,0.0001,60562.0,60560.0,0.09808486]
[1727975514224,0.0001,60562.0,60561.0,0.32830871]
[1727975514453,0.0001,60562.0,60561.0,0.32760871]
[1727975514691,0.2491922,60572.0,60561.0,0.16318671]
[1727975514923,0.165107,60567.0,60566.0,0.12258513]
[1727975515219,0.330219,60566.0,60560.0,0.1471031]
[1727975515453,0.330219,60566.0,60561.0,0.42237891]
[1727975515687,0.16512,60562.0,60561.0,0.17308671]
[1727975516145,0.16512,60562.0,60561.0,0.16318671]
[1727975517071,0.16512,60562.0,60557.0,0.1471031]
[1727975517295,0.16512,60562.0,60555.0,0.1471031]
[1727975517296,0.165136,60556.0,60555.0,0.1471031]
[1727975517521,0.16514,60555.0,60552.0,0.5614423]
[1727975517756,0.165144,60554.0,60552.0,0.1471031]
[1727975517981,0.165144,60553.0,60552.0,0.1471031]
[1727975518447,0.165144,60553.0,60552.0,0.16318671]
[1727975518682,0.165144,60553.0,60552.0,0.17218671]
[1727975518928,0.165144,60553.0,60552.0,0.16318671]
[1727975519371,0.165144,60553.0,60552.0,0.17118671]
[1727975519624,0.16515,60551.0,60550.0,4e-05]
[1727975519865,0.165147,60553.0,60552.0,0.006]
[1727975520104,0.165143,60554.0,60552.0,0.011]
[1727975520346,0.165136,60556.0,60553.0,0.32832971]
[1727975520584,0.165134,60557.0,60554.0,0.16514]
[1727975520841,0.165137,60556.0,60555.0,0.16318671]
[1727975521082,0.165136,60556.0,60555.0,0.16318671]
[1727975521811,0.165136,60556.0,60555.0,0.21236132]
[1727975522034,0.288858,60556.0,60555.0,0.21236132]
[1727975522278,0.165136,60556.0,60555.0,0.16318671]
[1727975522778,0.330267,60557.0,60551.0,0.04917461]
[1727975522779,0.165147,60552.0,60551.0,0.04917461]
[1727975523004,0.16515,60551.0,60550.0,0.04921461]
[1727975523237,0.16515,60551.0,60550.0,4e-05]
[1727975524211,0.35325103,60560.0,60551.0,0.002]
[1727975524435,0.165147,60552.0,60551.0,0.16518671]
[1727975524682,0.330277,60556.0,60551.0,0.16518671]
[1727975524904,0.0773,60568.0,60552.0,0.16318671]
[1727975525125,0.330248,60561.0,60556.0,0.165134]
[1727975525350,0.330248,60561.0,60555.0,0.330276]
[1727975525351,0.16512,60562.0,60559.0,0.165126]
[1727975525588,0.35611899,60563.0,60559.0,0.16318671]
[1727975525831,0.02588299,60563.0,60559.0,0.16318671]
[1727975526074,0.165123,60561.0,60559.0,0.16318671]
[1727975526299,0.000817,60561.0,60559.0,0.16318671]
[1727975526523,0.16594,60561.0,60559.0,0.16318671]
[1727975526784,0.165125,60560.0,60559.0,0.16318671]
[1727975527023,0.0852308,60560.0,60559.0,0.16518671]
[1727975527269,0.2503558,60560.0,60559.0,0.008]
[1727975527793,0.3500558,60560.0,60559.0,0.008]
[1727975528489,0.3500558,60560.0,60551.0,0.001634]
[1727975528712,0.165133,60557.0,60556.0,0.2491922]
[1727975528962,0.05967095,60559.0,60551.0,0.16482071]
[1727975528963,0.165147,60552.0,60551.0,0.16482071]
[1727975529680,0.165145,60553.0,60551.0,0.16482071]
[1727975529927,0.165147,60552.0,60551.0,0.16482071]
[1727975530192,0.165147,60552.0,60551.0,0.17482071]
[1727975530451,0.165147,60552.0,60551.0,0.18082071]
[1727975531691,0.165147,60552.0,60551.0,0.16482071]
[1727975531927,0.165147,60552.0,60551.0,0.17182071]
[1727975532163,0.165141,60555.0,60552.0,0.165146]
[1727975532416,0.000817,60561.0,60552.0,0.16318671]
[1727975532666,0.000817,60561.0,60551.0,0.011634]
[1727975532667,0.000817,60561.0,60560.0,0.165125]
[1727975532920,0.000817,60561.0,60560.0,0.32831171]
[1727975535107,0.165939,60561.0,60560.0,0.17018671]
[1727975535356,0.165939,60561.0,60560.0,0.16318671]
[1727975535623,0.165939,60561.0,60560.0,0.008]
[1727975535624,0.331063,60561.0,60560.0,0.008]
[1727975535841,0.165939,60561.0,60560.0,0.008]
[1727975536061,0.2729308,60561.0,60560.0,0.008]
[1727975536280,0.2729308,60561.0,60560.0,0.007]
[1727975536513,0.2729308,60561.0,60560.0,0.011]
[1727975536760,0.165939,60561.0,60560.0,0.011]
[1727975537005,0.165939,60561.0,60560.0,0.004]
[1727975537970,0.331063,60561.0,60551.0,0.2508262]
[1727975538214,0.02670166,60561.0,60558.0,0.2491922]
[1727975538440,0.02670166,60561.0,60551.0,0.2508262]
[1727975538441,0.02670166,60561.0,60560.0,0.171125]
[1727975538693,0.02670166,60561.0,60560.0,0.32831171]
[1727975539452,0.165939,60561.0,60560.0,0.16318671]
[1727975539697,0.165128,60559.0,60558.0,0.004]
[1727975539942,0.77990921,60561.0,60560.0,0.002]
[1727975540177,0.77990921,60561.0,60560.0,0.007]
[1727975540905,0.496184,60561.0,60560.0,0.007]
[1727975541155,0.496184,60561.0,60560.0,0.005]
[1727975541392,0.165132,60558.0,60554.0,0.16514]
[1727975541627,0.165128,60559.0,60558.0,0.001]
[1727975542164,0.165136,60556.0,60555.0,0.16318671]
[1727975542403,0.000817,60561.0,60551.0,0.2508262]
[1727975542651,0.165141,60555.0,60552.0,0.16318671]
[1727975542903,0.000817,60561.0,60552.0,0.16318671]
[1727975542904,0.02588464,60556.0,60555.0,0.165139]
[1727975543177,0.02588464,60556.0,60555.0,0.32832571]
[1727975544558,0.02588464,60556.0,60555.0,0.32932571]
[1727975545513,0.19102064,60556.0,60555.0,0.16418671]
[1727975545782,0.2762567,60556.0,60555.0,0.16318671]
[1727975546280,0.165136,60556.0,60555.0,0.16318671]
[1727975546507,0.165136,60556.0,60551.0,0.001634]
[1727975546508,0.28372521,60556.0,60551.0,0.001634]
[1727975546755,0.28372521,60556.0,60551.0,0.16482071]
[1727975546756,0.330277,60556.0,60551.0,0.16482071]
[1727975547005,0.28454221,60561.0,60551.0,0.16482071]
[1727975547006,0.165146,60553.0,60551.0,0.16482071]
[1727975547260,0.165147,60552.0,60551.0,0.16482071]
[1727975547515,0.28454221,60561.0,60551.0,0.32996971]
[1727975547516,0.165139,60555.0,60551.0,0.32996971]
[1727975547784,0.165137,60556.0,60552.0,0.32833371]
[1727975548028,0.165141,60555.0,60552.0,0.16318671]
[1727975548257,0.165144,60554.0,60552.0,0.16318671]
[1727975548548,0.165144,60554.0,60551.0,0.001634]
[1727975548549,0.53291741,60556.0,60551.0,0.002634]
[1727975548784,0.165147,60552.0,60551.0,0.002634]
[1727975549043,0.165147,60552.0,60551.0,0.009634]
[1727975549044,0.31684742,60552.0,60551.0,0.009634]
[1727975549255,0.58534742,60552.0,60551.0,0.001634]
[1727975549542,0.61123836,60552.0,60551.0,0.001634]
[1727975549975,0.35953794,60552.0,60551.0,0.001634]
[1727975551161,0.35953794,60552.0,60551.0,0.002634]
[1727975551376,0.36553794,60552.0,60551.0,0.002634]
[1727975551619,0.36553794,60552.0,60551.0,0.003634]
[1727975551830,0.35953794,60552.0,60551.0,0.002634]
[1727975552072,0.36553794,60552.0,60551.0,0.003634]
[1727975552532,0.52872465,60552.0,60551.0,0.001634]
[1727975552787,0.35953794,60552.0,60551.0,0.001634]
[1727975553005,0.36753794,60552.0,60551.0,0.002634]
[1727975553979,0.36553794,60552.0,60551.0,0.002634]
[1727975554686,0.52272465,60552.0,60551.0,0.001634]
[1727975554917,0.52272465,60552.0,60551.0,0.002634]
[1727975555139,0.52872465,60552.0,60551.0,0.002634]
[1727975555392,0.52872465,60552.0,60551.0,0.003634]
[1727975555610,0.52272465,60552.0,60551.0,0.001634]
[1727975555827,0.20039094,60552.0,60551.0,0.002634]
[1727975556057,0.20039094,60552.0,60551.0,0.003634]
[1727975556058,0.36553794,60552.0,60551.0,0.003634]
[1727975556549,0.20039094,60552.0,60551.0,0.003634]
[1727975556797,0.36553794,60552.0,60551.0,0.003634]
[1727975557729,0.27433794,60552.0,60551.0,0.003634]
[1727975560088,0.10919094,60552.0,60551.0,0.003634]
[1727975560346,0.03189094,60552.0,60551.0,0.003634]
[1727975560604,0.03189094,60552.0,60551.0,0.33197071]
[1727975560830,0.006,60552.0,60551.0,0.33197071]
[1727975561329,0.000817,60561.0,60551.0,0.49611771]
[1727975561540,0.000817,60561.0,60555.0,0.165137]
[1727975561760,0.09540304,60561.0,60551.0,0.16482071]
[1727975561984,0.165147,60552.0,60551.0,0.001634]
[1727975562469,0.165147,60552.0,60551.0,0.014634]
[1727975562718,0.165147,60552.0,60551.0,0.006634]
[1727975562931,0.09540304,60561.0,60551.0,0.16982071]
[1727975562932,0.002817,60561.0,60551.0,0.16982071]
[1727975563195,0.167939,60561.0,60555.0,0.330275]
[1727975563423,0.167939,60561.0,60556.0,0.330268]
[1727975563424,0.002817,60561.0,60556.0,0.330268]
[1727975563637,0.002817,60561.0,60560.0,0.165125]
[1727975563905,0.002817,60561.0,60555.0,0.16318671]
[1727975564111,0.002817,60561.0,60557.0,0.330264]
[1727975564330,0.000817,60561.0,60557.0,0.165132]
[1727975565068,0.004817,60561.0,60556.0,0.165134]
[1727975565285,0.004817,60561.0,60555.0,0.16318671]
[1727975565509,0.165134,60557.0,60551.0,0.166783]
[1727975565728,0.0630235,60561.0,60551.0,0.001634]
[1727975565963,0.165147,60552.0,60551.0,0.001634]
[1727975566884,0.246447,60552.0,60551.0,0.001634]
[1727975567837,0.248447,60552.0,60551.0,0.005634]
[1727975568065,0.246447,60552.0,60551.0,0.001634]
[1727975568532,0.27833708,60552.0,60551.0,0.002634]
[1727975568760,0.42293593,60552.0,60551.0,0.002634]
[1727975569011,0.42293593,60552.0,60551.0,0.003634]
[1727975569254,0.41593593,60552.0,60551.0,0.002634]
[1727975569489,0.42593593,60552.0,60551.0,0.003634]
[1727975569954,0.52593593,60552.0,60551.0,0.003634]
[1727975570899,0.42593593,60552.0,60551.0,0.003634]
[1727975571351,0.51893593,60552.0,60551.0,0.003634]
[1727975571595,0.56782738,60552.0,60551.0,0.003634]
[1727975572040,0.38933845,60552.0,60551.0,0.003634]
[1727975574497,0.38733845,60552.0,60551.0,0.003634]
[1727975574732,0.38933845,60552.0,60551.0,0.003634]
[1727975575660,0.38733845,60552.0,60551.0,0.003634]
[1727975576109,0.361447,60552.0,60551.0,0.003634]
[1727975576765,0.52463371,60552.0,60551.0,0.003634]
[1727975578576,0.52663371,60552.0,60551.0,0.003634]
[1727975579062,0.62663371,60552.0,60551.0,0.003634]
[1727975579291,0.62463371,60552.0,60551.0,0.003634]
[1727975579518,0.65052523,60552.0,60551.0,0.003634]
[1727975580167,0.65252523,60552.0,60551.0,0.003634]
[1727975580631,0.62663371,60552.0,60551.0,0.003634]
[1727975580889,0.461447,60552.0,60551.0,0.003634]
[1727975581117,0.187147,60552.0,60551.0,0.003634]
[1727975581361,0.47087221,60552.0,60551.0,0.003634]
[1727975583260,0.022,60552.0,60551.0,0.003634]
[1727975583496,0.022,60552.0,60551.0,0.33197071]
[1727975583764,0.022,60552.0,60551.0,0.16682071]
[1727975583989,0.022,60552.0,60551.0,0.33197071]
[1727975584273,0.022,60552.0,60551.0,0.40907071]
[1727975584274,0.012,60552.0,60551.0,0.40907071]
[1727975584509,0.000817,60561.0,60559.0,0.165126]
[1727975584754,0.02588364,60559.0,60558.0,0.16513]
[1727975584987,0.02588364,60559.0,60555.0,0.330277]
[1727975585226,0.02588364,60559.0,60557.0,0.165132]
[1727975585454,0.02588364,60559.0,60558.0,0.16513]
[1727975585680,0.02588364,60559.0,60557.0,0.165131]
[1727975586175,0.000817,60561.0,60560.0,0.165125]
[1727975586442,0.000817,60561.0,60558.0,0.16513]
[1727975586699,0.000817,60561.0,60556.0,0.16318671]
[1727975586700,0.000817,60561.0,60560.0,0.165125]
[1727975587149,0.000817,60561.0,60556.0,0.32832071]
[1727975587376,0.0496169,60560.0,60555.0,0.004]
[1727975587612,0.165139,60555.0,60551.0,0.001634]
[1727975588137,0.16513,60558.0,60553.0,0.165143]
[1727975588366,0.07109369,60558.0,60554.0,0.16514]
[1727975588592,0.23622469,60558.0,60551.0,0.331932]
[1727975588818,0.3798729,60560.0,60555.0,0.003]
[1727975588819,0.165136,60556.0,60555.0,0.003]
[1727975589565,0.165136,60556.0,60551.0,0.001634]